[Event "Titled Tuesday Blitz March 07 Early 2023"]
[White "Girsh, Daniel"]
[Black "Sadubayev, Airat"]
[WhiteFideId "30949190"]
[BlackFideId "13713264"]
[WhiteElo "2075"]
[BlackElo "2129"]
[Result "1-0"]
[Round "03"]
[TimeControl "180+2"]
[Date "2023.03.07"]
[WhiteClock "0:00:29"]
[BlackClock "0:00:08"]

1. e4 {[%clk 0:03:00]}  c6 {[%clk 0:02:58]} 2. d4 {[%clk 0:03:00]}  d5 {[%clk 0:02:59]} 3. e5 {[%clk 0:03:00]}  Bf5 {[%clk 0:02:58]} 4. h3 {[%clk 0:03:00]}  e6 {[%clk 0:02:55]} 5. Ne2 {[%clk 0:02:58]}  c5 {[%clk 0:02:54]} 6. Ng3 {[%clk 0:02:57]}  Bg6 {[%clk 0:02:54]} 7. c3 {[%clk 0:02:57]}  Nc6 {[%clk 0:02:53]} 8. Bd3 {[%clk 0:02:49]}  cxd4 {[%clk 0:02:47]} 9. cxd4 {[%clk 0:02:47]}  Qb6 {[%clk 0:02:44]} 10. Bxg6 {[%clk 0:02:36]}  hxg6 {[%clk 0:02:44]} 11. Ne2 {[%clk 0:02:28]}  Nge7 {[%clk 0:02:38]} 12. g4 {[%clk 0:02:28]}  O-O-O {[%clk 0:02:15]} 13. Nbc3 {[%clk 0:02:27]}  Kb8 {[%clk 0:02:10]} 14. Be3 {[%clk 0:02:25]}  f6 {[%clk 0:02:06]} 15. exf6 {[%clk 0:02:23]}  gxf6 {[%clk 0:02:07]} 16. Nf4 {[%clk 0:02:21]}  Na5 {[%clk 0:01:56]} 17. Na4 {[%clk 0:02:09]}  Qb4+ {[%clk 0:01:45]} 18. Kf1 {[%clk 0:02:01]}  e5 {[%clk 0:01:37]} 19. Ne6 {[%clk 0:01:57]}  Rc8 {[%clk 0:01:22]} 20. Nac5 {[%clk 0:01:53]}  Bh6 {[%clk 0:00:55]} 21. Qe2 {[%clk 0:01:35]}  Bxe3 {[%clk 0:00:51]} 22. Qxe3 {[%clk 0:01:35]}  Nc4 {[%clk 0:00:45]} 23. Qc3 {[%clk 0:01:20]}  Qb5 {[%clk 0:00:29]} 24. Kg2 {[%clk 0:01:14]}  b6 {[%clk 0:00:21]} 25. Nb3 {[%clk 0:00:51]}  Qd7 {[%clk 0:00:19]} 26. dxe5 {[%clk 0:00:44]}  Qxe6 {[%clk 0:00:18]} 27. exf6 {[%clk 0:00:44]}  Nc6 {[%clk 0:00:16]} 28. Rae1 {[%clk 0:00:40]}  Qf7 {[%clk 0:00:13]} 29. g5 {[%clk 0:00:38]}  Rhe8 {[%clk 0:00:12]} 30. Nd4 {[%clk 0:00:35]}  Nxd4 {[%clk 0:00:12]} 31. Qxd4 {[%clk 0:00:35]}  Rxe1 {[%clk 0:00:12]} 32. Rxe1 {[%clk 0:00:34]}  Re8 {[%clk 0:00:11]} 33. Rxe8+ {[%clk 0:00:33]}  Qxe8 {[%clk 0:00:11]} 34. Qxd5 {[%clk 0:00:34]}  Ne5 {[%clk 0:00:09]} 35. Qd6+ {[%clk 0:00:32]}  Ka8 {[%clk 0:00:07]} 36. f4 {[%clk 0:00:29]}  Qc6+ {[%clk 0:00:06]} 37. Qxc6+ {[%clk 0:00:27]}  Nxc6 {[%clk 0:00:06]} 38. f7 {[%clk 0:00:28]}  Ne7 {[%clk 0:00:03]} 39. f8=Q+ {[%clk 0:00:29]}  Kb7 {[%clk 0:00:01]} 40. Qxe7+ {[%clk 0:00:29]}  Ka6 {[%clk 0:00:02]} 41. Qf6 {[%clk 0:00:29]}  Kb5 {[%clk 0:00:03]} 42. Qxg6 {[%clk 0:00:29]}  Ka4 {[%clk 0:00:04]} 43. Qd3 {[%clk 0:00:29]}  Kb4 {[%clk 0:00:05]} 44. g6 {[%clk 0:00:29]}  Kc5 {[%clk 0:00:05]} 45. g7 {[%clk 0:00:29]}  Kc6 {[%clk 0:00:06]} 46. g8=Q {[%clk 0:00:29]}  Kc7 {[%clk 0:00:07]} 47. Qgd8+ {[%clk 0:00:29]}  Kc6 {[%clk 0:00:08]} 48. Q3d5# {[%clk 0:00:29]} 1-0


[Site "https://www.chess.com"]

[Event "Titled Tuesday Blitz March 07 Early 2023"]
[White "Kuzmin, Roman"]
[Black "Bogaudinov, Rushan"]
[WhiteFideId "44134932"]
[BlackFideId "4129288"]
[WhiteElo "2146"]
[BlackElo "1949"]
[Result "1-0"]
[Round "03"]
[TimeControl "180+2"]
[Date "2023.03.07"]
[WhiteClock "0:00:10"]
[BlackClock "0:00:04"]

1. e4 {[%clk 0:03:00]}  c5 {[%clk 0:02:58]} 2. Nf3 {[%clk 0:03:00]}  Nc6 {[%clk 0:02:57]} 3. d4 {[%clk 0:03:01]}  cxd4 {[%clk 0:02:58]} 4. Nxd4 {[%clk 0:03:01]}  a6 {[%clk 0:02:58]} 5. c4 {[%clk 0:02:53]}  Qc7 {[%clk 0:02:57]} 6. Nc3 {[%clk 0:02:50]}  e6 {[%clk 0:02:57]} 7. Be3 {[%clk 0:02:47]}  Nf6 {[%clk 0:02:54]} 8. a3 {[%clk 0:02:25]}  Be7 {[%clk 0:02:49]} 9. Be2 {[%clk 0:02:24]}  b6 {[%clk 0:02:44]} 10. Rc1 {[%clk 0:02:19]}  Bb7 {[%clk 0:02:43]} 11. f3 {[%clk 0:02:17]}  h5 {[%clk 0:02:39]} 12. Nd5 {[%clk 0:01:55]}  exd5 {[%clk 0:02:30]} 13. cxd5 {[%clk 0:01:56]}  Qe5 {[%clk 0:02:23]} 14. dxc6 {[%clk 0:01:52]}  dxc6 {[%clk 0:02:24]} 15. Nxc6 {[%clk 0:01:44]}  Bxc6 {[%clk 0:02:23]} 16. Rxc6 {[%clk 0:01:44]}  O-O {[%clk 0:02:21]} 17. Qd4 {[%clk 0:01:22]}  Qxd4 {[%clk 0:01:59]} 18. Bxd4 {[%clk 0:01:23]}  b5 {[%clk 0:01:57]} 19. Kf2 {[%clk 0:01:20]}  Rfd8 {[%clk 0:01:51]} 20. Bb6 {[%clk 0:01:11]}  Rd2 {[%clk 0:01:45]} 21. Rb1 {[%clk 0:00:50]}  h4 {[%clk 0:01:16]} 22. Be3 {[%clk 0:00:49]}  Rd6 {[%clk 0:01:14]} 23. Rxd6 {[%clk 0:00:42]}  Bxd6 {[%clk 0:01:14]} 24. g3 {[%clk 0:00:42]}  hxg3+ {[%clk 0:01:11]} 25. hxg3 {[%clk 0:00:43]}  Rc8 {[%clk 0:00:58]} 26. Rc1 {[%clk 0:00:41]}  Rxc1 {[%clk 0:00:58]} 27. Bxc1 {[%clk 0:00:42]}  Kf8 {[%clk 0:00:53]} 28. Bd3 {[%clk 0:00:41]}  Nd7 {[%clk 0:00:51]} 29. f4 {[%clk 0:00:37]}  Nc5 {[%clk 0:00:51]} 30. Bc2 {[%clk 0:00:37]}  f6 {[%clk 0:00:48]} 31. Be3 {[%clk 0:00:32]}  Ke7 {[%clk 0:00:48]} 32. Ke2 {[%clk 0:00:32]}  Ke6 {[%clk 0:00:39]} 33. Kf3 {[%clk 0:00:31]}  Nd7 {[%clk 0:00:34]} 34. Bb3+ {[%clk 0:00:30]}  Ke7 {[%clk 0:00:34]} 35. Bd4 {[%clk 0:00:20]}  Nc5 {[%clk 0:00:29]} 36. Bd5 {[%clk 0:00:18]}  Ne6 {[%clk 0:00:25]} 37. Bc3 {[%clk 0:00:17]}  Nc7 {[%clk 0:00:22]} 38. Bb7 {[%clk 0:00:16]}  Bc5 {[%clk 0:00:17]} 39. e5 {[%clk 0:00:12]}  Bb6 {[%clk 0:00:14]} 40. exf6+ {[%clk 0:00:11]}  gxf6 {[%clk 0:00:15]} 41. Ke4 {[%clk 0:00:12]}  a5 {[%clk 0:00:15]} 42. Kf5 {[%clk 0:00:12]}  Ne8 {[%clk 0:00:15]} 43. Bc6 {[%clk 0:00:12]}  Nd6+ {[%clk 0:00:15]} 44. Kg6 {[%clk 0:00:13]}  Nc4 {[%clk 0:00:13]} 45. Bxf6+ {[%clk 0:00:12]}  Kd6 {[%clk 0:00:14]} 46. Bxb5 {[%clk 0:00:12]}  Ne3 {[%clk 0:00:13]} 47. Be5+ {[%clk 0:00:12]}  Kc5 {[%clk 0:00:13]} 48. Be2 {[%clk 0:00:12]}  Nd5 {[%clk 0:00:12]} 49. g4 {[%clk 0:00:12]}  Ne7+ {[%clk 0:00:11]} 50. Kh5 {[%clk 0:00:12]}  Kd5 {[%clk 0:00:11]} 51. Bf3+ {[%clk 0:00:12]}  Ke6 {[%clk 0:00:11]} 52. Be4 {[%clk 0:00:11]}  Be3 {[%clk 0:00:10]} 53. g5 {[%clk 0:00:11]}  Nf5 {[%clk 0:00:02]} 54. Bxf5+ {[%clk 0:00:10]}  Kxf5 {[%clk 0:00:03]} 55. g6 {[%clk 0:00:11]}  Bc5 {[%clk 0:00:02]} 56. g7 {[%clk 0:00:10]}  a4 {[%clk 0:00:03]} 57. g8=Q {[%clk 0:00:10]}  Ke4 {[%clk 0:00:03]} 58. Qc4+ {[%clk 0:00:10]}  Kf5 {[%clk 0:00:04]} 59. Qxc5 {[%clk 0:00:10]}  Ke6 {[%clk 0:00:04]} 60. Qc4+ {[%clk 0:00:10]} 1-0


[Site "https://www.chess.com"]

[Event "Titled Tuesday Blitz March 07 Early 2023"]
[White "Vifleemskaia, Svetlana"]
[Black "Principe, Gerson"]
[WhiteFideId "4129490"]
[BlackFideId "3804550"]
[WhiteElo "1930"]
[BlackElo "2229"]
[Result "1-0"]
[Round "03"]
[TimeControl "180+2"]
[Date "2023.03.07"]
[WhiteClock "0:00:37"]
[BlackClock "0:00:01"]

1. d4 {[%clk 0:02:48]}  Nf6 {[%clk 0:02:00]} 2. c4 {[%clk 0:02:47]}  e6 {[%clk 0:02:01]} 3. Nc3 {[%clk 0:02:47]}  Bb4 {[%clk 0:02:01]} 4. e3 {[%clk 0:02:47]}  O-O {[%clk 0:02:01]} 5. Ne2 {[%clk 0:02:48]}  b6 {[%clk 0:01:55]} 6. a3 {[%clk 0:02:48]}  Bxc3+ {[%clk 0:01:54]} 7. Nxc3 {[%clk 0:02:48]}  Bb7 {[%clk 0:01:55]} 8. Bd3 {[%clk 0:02:43]}  d5 {[%clk 0:01:34]} 9. O-O {[%clk 0:02:42]}  Nbd7 {[%clk 0:01:31]} 10. b4 {[%clk 0:02:29]}  c5 {[%clk 0:01:28]} 11. dxc5 {[%clk 0:02:22]}  bxc5 {[%clk 0:01:27]} 12. cxd5 {[%clk 0:02:20]}  exd5 {[%clk 0:01:17]} 13. Bb2 {[%clk 0:02:11]}  Qe7 {[%clk 0:01:07]} 14. bxc5 {[%clk 0:01:57]}  Nxc5 {[%clk 0:01:02]} 15. Nb5 {[%clk 0:01:48]}  Nce4 {[%clk 0:00:34]} 16. Qe2 {[%clk 0:01:38]}  Rfd8 {[%clk 0:00:29]} 17. a4 {[%clk 0:01:32]}  a6 {[%clk 0:00:22]} 18. Nd4 {[%clk 0:01:25]}  Nc5 {[%clk 0:00:22]} 19. Ba3 {[%clk 0:01:17]}  Rac8 {[%clk 0:00:13]} 20. a5 {[%clk 0:01:14]}  Qe5 {[%clk 0:00:11]} 21. Nf3 {[%clk 0:01:10]}  Qh5 {[%clk 0:00:10]} 22. Rab1 {[%clk 0:01:01]}  Nxd3 {[%clk 0:00:08]} 23. Qxd3 {[%clk 0:00:59]}  Bc6 {[%clk 0:00:06]} 24. Nd4 {[%clk 0:00:57]}  Bb5 {[%clk 0:00:04]} 25. Nxb5 {[%clk 0:00:54]}  axb5 {[%clk 0:00:05]} 26. Rxb5 {[%clk 0:00:54]}  Ng4 {[%clk 0:00:05]} 27. h3 {[%clk 0:00:52]}  Ne5 {[%clk 0:00:06]} 28. Qd1 {[%clk 0:00:46]}  Qf5 {[%clk 0:00:04]} 29. Bb2 {[%clk 0:00:40]}  Nc4 {[%clk 0:00:02]} 30. Qd4 {[%clk 0:00:37]}  Qd7 {[%clk 0:00:01]} 1-0


[Site "https://www.chess.com"]

[Event "Titled Tuesday Blitz March 07 Early 2023"]
[White "Liu, Yi"]
[Black "Bove, Alessandro"]
[WhiteFideId "3210588"]
[BlackFideId "814121"]
[WhiteElo "2264"]
[BlackElo "2387"]
[Result "1-0"]
[Round "03"]
[TimeControl "180+2"]
[Date "2023.03.07"]
[WhiteClock "0:01:04"]
[BlackClock "0:01:39"]

1. e4 {[%clk 0:02:59]}  c5 {[%clk 0:02:56]} 2. Nf3 {[%clk 0:02:58]}  d6 {[%clk 0:02:57]} 3. d4 {[%clk 0:02:58]}  cxd4 {[%clk 0:02:57]} 4. Nxd4 {[%clk 0:02:59]}  Nf6 {[%clk 0:02:58]} 5. Nc3 {[%clk 0:03:00]}  g6 {[%clk 0:02:59]} 6. Be3 {[%clk 0:02:57]}  Bg7 {[%clk 0:02:58]} 7. f3 {[%clk 0:02:57]}  O-O {[%clk 0:02:55]} 8. Qd2 {[%clk 0:02:56]}  Nc6 {[%clk 0:02:56]} 9. O-O-O {[%clk 0:02:54]}  Bd7 {[%clk 0:02:56]} 10. g4 {[%clk 0:02:54]}  Qa5 {[%clk 0:02:55]} 11. Nb3 {[%clk 0:02:46]}  Qc7 {[%clk 0:02:51]} 12. h4 {[%clk 0:02:37]}  a5 {[%clk 0:02:48]} 13. h5 {[%clk 0:02:21]}  a4 {[%clk 0:02:44]} 14. Nd4 {[%clk 0:02:16]}  a3 {[%clk 0:02:23]} 15. b3 {[%clk 0:02:11]}  Ne5 {[%clk 0:02:22]} 16. hxg6 {[%clk 0:02:01]}  fxg6 {[%clk 0:02:20]} 17. Be2 {[%clk 0:01:39]}  b5 {[%clk 0:02:14]} 18. Ncxb5 {[%clk 0:01:31]}  Bxb5 {[%clk 0:02:11]} 19. Nxb5 {[%clk 0:01:32]}  Qb7 {[%clk 0:02:02]} 20. Bh6 {[%clk 0:01:20]}  Bxh6 {[%clk 0:01:50]} 21. Qxh6 {[%clk 0:01:17]}  Nxf3 {[%clk 0:01:49]} 22. Bxf3 {[%clk 0:01:10]}  Qxb5 {[%clk 0:01:48]} 23. g5 {[%clk 0:01:08]}  Qe5 {[%clk 0:01:47]} 24. gxf6 {[%clk 0:01:05]}  Qb2+ {[%clk 0:01:43]} 25. Kd2 {[%clk 0:01:05]}  Qd4+ {[%clk 0:01:39]} 26. Ke2 {[%clk 0:01:04]} 1-0


[Site "https://www.chess.com"]

[Event "Titled Tuesday Blitz March 07 Early 2023"]
[White "Hebden, Mark L"]
[Black "Zampronha, Wladimir Camilo"]
[WhiteFideId "400084"]
[BlackFideId "2103087"]
[WhiteElo "2436"]
[BlackElo "2176"]
[Result "1-0"]
[Round "03"]
[TimeControl "180+2"]
[Date "2023.03.07"]
[WhiteClock "0:01:28"]
[BlackClock "0:00:04"]

1. d4 {[%clk 0:03:00]}  Nf6 {[%clk 0:02:59]} 2. Nf3 {[%clk 0:02:59]}  e6 {[%clk 0:02:59]} 3. c3 {[%clk 0:02:59]}  b6 {[%clk 0:02:58]} 4. Bg5 {[%clk 0:02:59]}  Bb7 {[%clk 0:02:57]} 5. Nbd2 {[%clk 0:02:59]}  h6 {[%clk 0:02:57]} 6. Bxf6 {[%clk 0:02:59]}  Qxf6 {[%clk 0:02:56]} 7. e4 {[%clk 0:02:59]}  Qe7 {[%clk 0:02:55]} 8. Bd3 {[%clk 0:02:58]}  g6 {[%clk 0:02:55]} 9. Qe2 {[%clk 0:02:57]}  Bg7 {[%clk 0:02:55]} 10. a4 {[%clk 0:02:54]}  Nc6 {[%clk 0:02:54]} 11. Ba6 {[%clk 0:02:52]}  Bxa6 {[%clk 0:02:46]} 12. Qxa6 {[%clk 0:02:52]}  O-O {[%clk 0:02:47]} 13. O-O {[%clk 0:02:50]}  Qd8 {[%clk 0:02:27]} 14. b4 {[%clk 0:02:45]}  Qc8 {[%clk 0:02:23]} 15. Qd3 {[%clk 0:02:41]}  a5 {[%clk 0:02:20]} 16. b5 {[%clk 0:02:40]}  Ne7 {[%clk 0:02:21]} 17. Rac1 {[%clk 0:02:36]}  Qb7 {[%clk 0:02:21]} 18. c4 {[%clk 0:02:34]}  c6 {[%clk 0:02:16]} 19. e5 {[%clk 0:02:27]}  cxb5 {[%clk 0:02:00]} 20. axb5 {[%clk 0:02:26]}  Rad8 {[%clk 0:01:28]} 21. Ne4 {[%clk 0:02:24]}  Nc8 {[%clk 0:01:28]} 22. c5 {[%clk 0:02:19]}  bxc5 {[%clk 0:01:25]} 23. dxc5 {[%clk 0:02:18]}  Ne7 {[%clk 0:01:23]} 24. Rfd1 {[%clk 0:02:06]}  Nd5 {[%clk 0:01:21]} 25. Nc3 {[%clk 0:02:04]}  Nxc3 {[%clk 0:01:18]} 26. Rxc3 {[%clk 0:02:01]}  Rb8 {[%clk 0:00:52]} 27. Rb1 {[%clk 0:01:55]}  f5 {[%clk 0:00:33]} 28. h4 {[%clk 0:01:49]}  Rfd8 {[%clk 0:00:27]} 29. Rc4 {[%clk 0:01:43]}  Bf8 {[%clk 0:00:17]} 30. g4 {[%clk 0:01:37]}  Kf7 {[%clk 0:00:13]} 31. h5 {[%clk 0:01:36]}  fxg4 {[%clk 0:00:06]} 32. Qxg6+ {[%clk 0:01:32]}  Ke7 {[%clk 0:00:06]} 33. Qf6+ {[%clk 0:01:32]}  Ke8 {[%clk 0:00:06]} 34. Rxg4 {[%clk 0:01:30]}  a4 {[%clk 0:00:04]} 35. Rg8 {[%clk 0:01:28]} 1-0


[Site "https://www.chess.com"]

[Event "Titled Tuesday Blitz March 07 Early 2023"]
[White "Fiedorek, Michal"]
[Black "Theytookourjobs"]
[WhiteFideId "1199528"]
[WhiteElo "2135"]
[BlackElo "2255"]
[Result "1-0"]
[Round "03"]
[TimeControl "180+2"]
[Date "2023.03.07"]
[WhiteClock "0:02:17"]
[BlackClock "0:01:18"]

1. c4 {[%clk 0:02:55]}  e5 {[%clk 0:02:56]} 2. Nc3 {[%clk 0:02:52]}  f5 {[%clk 0:02:50]} 3. g3 {[%clk 0:02:52]}  Nf6 {[%clk 0:02:50]} 4. Bg2 {[%clk 0:02:52]}  d6 {[%clk 0:02:50]} 5. Nf3 {[%clk 0:02:52]}  Be7 {[%clk 0:02:51]} 6. d3 {[%clk 0:02:51]}  O-O {[%clk 0:02:51]} 7. O-O {[%clk 0:02:50]}  c6 {[%clk 0:02:39]} 8. Rb1 {[%clk 0:02:49]}  a5 {[%clk 0:02:31]} 9. a3 {[%clk 0:02:49]}  Na6 {[%clk 0:02:27]} 10. b4 {[%clk 0:02:48]}  axb4 {[%clk 0:02:27]} 11. axb4 {[%clk 0:02:49]}  c5 {[%clk 0:02:27]} 12. b5 {[%clk 0:02:41]}  Nb4 {[%clk 0:02:26]} 13. Bd2 {[%clk 0:02:36]}  e4 {[%clk 0:01:27]} 14. dxe4 {[%clk 0:02:22]}  fxe4 {[%clk 0:01:27]} 15. Ng5 {[%clk 0:02:21]}  Be6 {[%clk 0:01:18]} 16. Nxe6 {[%clk 0:02:17]} 1-0


[Site "https://www.chess.com"]

[Event "Titled Tuesday Blitz March 07 Early 2023"]
[White "Grabinsky, Vladimir"]
[Black "Dinu, Dumitru-Daniel"]
[WhiteFideId "14107074"]
[BlackFideId "1208403"]
[WhiteElo "2027"]
[BlackElo "2240"]
[Result "0-1"]
[Round "03"]
[TimeControl "180+2"]
[Date "2023.03.07"]
[WhiteClock "0:00:14"]
[BlackClock "0:01:09"]

1. e4 {[%clk 0:03:00]}  c6 {[%clk 0:02:59]} 2. d4 {[%clk 0:02:59]}  d5 {[%clk 0:02:57]} 3. e5 {[%clk 0:03:00]}  Bf5 {[%clk 0:02:54]} 4. Nf3 {[%clk 0:03:00]}  e6 {[%clk 0:02:53]} 5. Be2 {[%clk 0:03:01]}  c5 {[%clk 0:02:52]} 6. Be3 {[%clk 0:02:59]}  cxd4 {[%clk 0:02:46]} 7. Nxd4 {[%clk 0:03:00]}  Ne7 {[%clk 0:02:41]} 8. c4 {[%clk 0:02:55]}  Nbc6 {[%clk 0:02:38]} 9. cxd5 {[%clk 0:02:45]}  Qxd5 {[%clk 0:02:24]} 10. Nc3 {[%clk 0:02:42]}  Qxe5 {[%clk 0:02:22]} 11. O-O {[%clk 0:02:33]}  Rd8 {[%clk 0:02:09]} 12. Ncb5 {[%clk 0:02:23]}  a6 {[%clk 0:01:57]} 13. Nf3 {[%clk 0:00:56]}  Rxd1 {[%clk 0:01:52]} 14. Nxe5 {[%clk 0:00:54]}  Rxf1+ {[%clk 0:01:48]} 15. Kxf1 {[%clk 0:00:50]}  axb5 {[%clk 0:01:45]} 16. Bxb5 {[%clk 0:00:49]}  f6 {[%clk 0:01:44]} 17. Nc4 {[%clk 0:00:46]}  Nd5 {[%clk 0:01:41]} 18. Na5 {[%clk 0:00:27]}  Nxe3+ {[%clk 0:01:39]} 19. fxe3 {[%clk 0:00:28]}  Be4 {[%clk 0:01:38]} 20. Rc1 {[%clk 0:00:25]}  Kf7 {[%clk 0:01:21]} 21. Nxb7 {[%clk 0:00:24]}  Ne5 {[%clk 0:01:17]} 22. Rc7+ {[%clk 0:00:17]}  Kg6 {[%clk 0:01:12]} 23. Be8+ {[%clk 0:00:14]}  Kh6 {[%clk 0:01:09]} 0-1


[Site "https://www.chess.com"]

[Event "Titled Tuesday Blitz March 07 Early 2023"]
[White "Ruge, Edison"]
[Black "Molina, Roberto Junio Brito"]
[WhiteFideId "4401000"]
[BlackFideId "2109450"]
[WhiteElo "2175"]
[BlackElo "2376"]
[Result "1-0"]
[Round "03"]
[TimeControl "180+2"]
[Date "2023.03.07"]
[WhiteClock "0:00:08"]
[BlackClock "0:00:47"]

1. e4 {[%clk 0:03:00]}  c6 {[%clk 0:02:59]} 2. d3 {[%clk 0:02:59]}  d5 {[%clk 0:03:00]} 3. Nd2 {[%clk 0:02:58]}  g6 {[%clk 0:03:01]} 4. Ngf3 {[%clk 0:02:59]}  Bg7 {[%clk 0:03:01]} 5. g3 {[%clk 0:02:59]}  e5 {[%clk 0:03:01]} 6. Bg2 {[%clk 0:02:59]}  Ne7 {[%clk 0:03:01]} 7. h4 {[%clk 0:02:58]}  Bg4 {[%clk 0:02:59]} 8. h5 {[%clk 0:02:58]}  Bxh5 {[%clk 0:02:59]} 9. Rxh5 {[%clk 0:02:57]}  gxh5 {[%clk 0:03:00]} 10. Nh4 {[%clk 0:02:54]}  Ng6 {[%clk 0:02:55]} 11. Nf5 {[%clk 0:02:51]}  Bf6 {[%clk 0:02:55]} 12. Qxh5 {[%clk 0:02:51]}  d4 {[%clk 0:02:52]} 13. Nf3 {[%clk 0:02:47]}  Na6 {[%clk 0:02:50]} 14. Bd2 {[%clk 0:02:46]}  Nc5 {[%clk 0:02:49]} 15. Bb4 {[%clk 0:02:27]}  b6 {[%clk 0:02:33]} 16. Bh3 {[%clk 0:02:23]}  a5 {[%clk 0:02:29]} 17. Bxc5 {[%clk 0:02:18]}  bxc5 {[%clk 0:02:29]} 18. Nh6 {[%clk 0:02:17]}  Qe7 {[%clk 0:02:23]} 19. a4 {[%clk 0:02:07]}  Rb8 {[%clk 0:02:21]} 20. b3 {[%clk 0:02:07]}  c4 {[%clk 0:02:13]} 21. dxc4 {[%clk 0:02:02]}  Kd8 {[%clk 0:02:10]} 22. Kf1 {[%clk 0:01:51]}  Kc7 {[%clk 0:02:09]} 23. Ne1 {[%clk 0:01:45]}  Qf8 {[%clk 0:01:51]} 24. Nd3 {[%clk 0:01:39]}  c5 {[%clk 0:01:51]} 25. Ng4 {[%clk 0:01:19]}  Qe7 {[%clk 0:01:46]} 26. Qf5 {[%clk 0:01:17]}  Bg7 {[%clk 0:01:46]} 27. Nh2 {[%clk 0:01:05]}  Rb6 {[%clk 0:01:44]} 28. Nf3 {[%clk 0:01:03]}  Rf6 {[%clk 0:01:42]} 29. Qh5 {[%clk 0:01:02]}  Rc6 {[%clk 0:01:37]} 30. Rd1 {[%clk 0:00:48]}  f6 {[%clk 0:01:35]} 31. Nh2 {[%clk 0:00:33]}  Kb6 {[%clk 0:01:35]} 32. Qf5 {[%clk 0:00:29]}  Rc7 {[%clk 0:01:35]} 33. Qh5 {[%clk 0:00:26]}  Qf7 {[%clk 0:01:34]} 34. Qf3 {[%clk 0:00:22]}  Nf8 {[%clk 0:01:32]} 35. Kg2 {[%clk 0:00:21]}  Ne6 {[%clk 0:01:32]} 36. Qg4 {[%clk 0:00:19]}  Nd8 {[%clk 0:01:31]} 37. f4 {[%clk 0:00:20]}  Nc6 {[%clk 0:01:31]} 38. fxe5 {[%clk 0:00:19]}  Nxe5 {[%clk 0:01:28]} 39. Nxe5 {[%clk 0:00:19]}  fxe5 {[%clk 0:01:29]} 40. Rf1 {[%clk 0:00:19]}  Qg6 {[%clk 0:01:29]} 41. Qh4 {[%clk 0:00:17]}  Rf8 {[%clk 0:01:28]} 42. Rxf8 {[%clk 0:00:17]}  Bxf8 {[%clk 0:01:29]} 43. Bf5 {[%clk 0:00:16]}  Qh6 {[%clk 0:01:27]} 44. Qd8 {[%clk 0:00:13]}  Qd6 {[%clk 0:01:19]} 45. Qb8+ {[%clk 0:00:12]}  Rb7 {[%clk 0:01:20]} 46. Qa8 {[%clk 0:00:13]}  Qb8 {[%clk 0:01:17]} 47. Qxb8 {[%clk 0:00:12]}  Rxb8 {[%clk 0:01:18]} 48. Nf3 {[%clk 0:00:11]}  Bd6 {[%clk 0:01:14]} 49. Bxh7 {[%clk 0:00:11]}  Kc7 {[%clk 0:01:11]} 50. Bf5 {[%clk 0:00:12]}  Kd8 {[%clk 0:01:12]} 51. g4 {[%clk 0:00:12]}  Ke7 {[%clk 0:01:12]} 52. g5 {[%clk 0:00:12]}  Kf7 {[%clk 0:01:12]} 53. Kg3 {[%clk 0:00:12]}  Rh8 {[%clk 0:01:12]} 54. Nh4 {[%clk 0:00:11]}  Kg7 {[%clk 0:01:09]} 55. Kg4 {[%clk 0:00:12]}  Bc7 {[%clk 0:01:07]} 56. Be6 {[%clk 0:00:09]}  Rf8 {[%clk 0:01:05]} 57. Nf5+ {[%clk 0:00:09]}  Kg6 {[%clk 0:01:06]} 58. Nh4+ {[%clk 0:00:10]}  Kg7 {[%clk 0:01:06]} 59. Nf5+ {[%clk 0:00:10]}  Kh7 {[%clk 0:01:07]} 60. Kh5 {[%clk 0:00:09]}  Re8 {[%clk 0:00:49]} 61. g6+ {[%clk 0:00:09]}  Kh8 {[%clk 0:00:49]} 62. g7+ {[%clk 0:00:08]}  Kh7 {[%clk 0:00:50]} 63. Bf7 {[%clk 0:00:09]}  Rb8 {[%clk 0:00:47]} 64. Bg6+ {[%clk 0:00:08]}  Kg8 {[%clk 0:00:47]} 65. Kh6 {[%clk 0:00:07]}  Bd8 {[%clk 0:00:47]} 66. Bh7+ {[%clk 0:00:08]} 1-0


[Site "https://www.chess.com"]

[Event "Titled Tuesday Blitz March 07 Early 2023"]
[White "Alhadad, Mahmoud"]
[Black "Toropov, Pavel"]
[WhiteFideId "11501863"]
[BlackFideId "24129178"]
[WhiteElo "1955"]
[BlackElo "2182"]
[Result "0-1"]
[Round "03"]
[TimeControl "180+2"]
[Date "2023.03.07"]
[WhiteClock "0:00:02"]
[BlackClock "0:00:31"]

1. e4 {[%clk 0:03:00]}  e6 {[%clk 0:02:56]} 2. d4 {[%clk 0:02:56]}  d5 {[%clk 0:02:57]} 3. Bd3 {[%clk 0:02:56]}  dxe4 {[%clk 0:02:56]} 4. Bxe4 {[%clk 0:02:57]}  Nf6 {[%clk 0:02:56]} 5. Bf3 {[%clk 0:02:57]}  Be7 {[%clk 0:02:57]} 6. Ne2 {[%clk 0:02:55]}  O-O {[%clk 0:02:54]} 7. Be3 {[%clk 0:02:54]}  c5 {[%clk 0:02:42]} 8. Nbc3 {[%clk 0:02:53]}  Nbd7 {[%clk 0:02:30]} 9. Qd2 {[%clk 0:02:46]}  cxd4 {[%clk 0:02:29]} 10. Nxd4 {[%clk 0:02:44]}  Ne5 {[%clk 0:02:25]} 11. O-O-O {[%clk 0:02:40]}  Nxf3 {[%clk 0:02:24]} 12. gxf3 {[%clk 0:02:39]}  e5 {[%clk 0:02:21]} 13. Rhg1 {[%clk 0:02:15]}  exd4 {[%clk 0:02:12]} 14. Bh6 {[%clk 0:02:12]}  g6 {[%clk 0:02:08]} 15. Bxf8 {[%clk 0:01:47]}  Bxf8 {[%clk 0:02:09]} 16. Ne4 {[%clk 0:01:45]}  Bf5 {[%clk 0:02:04]} 17. Qf4 {[%clk 0:01:20]}  Bxe4 {[%clk 0:01:44]} 18. fxe4 {[%clk 0:01:18]}  Bg7 {[%clk 0:01:44]} 19. Rd3 {[%clk 0:00:55]}  Nh5 {[%clk 0:01:35]} 20. Qg4 {[%clk 0:00:47]}  Qd6 {[%clk 0:01:22]} 21. Rf3 {[%clk 0:00:21]}  Re8 {[%clk 0:01:16]} 22. Re1 {[%clk 0:00:15]}  Qe5 {[%clk 0:01:13]} 23. Kb1 {[%clk 0:00:14]}  d3 {[%clk 0:01:10]} 24. c3 {[%clk 0:00:14]}  d2 {[%clk 0:01:10]} 25. Rd1 {[%clk 0:00:14]}  Qxe4+ {[%clk 0:01:08]} 26. Qxe4 {[%clk 0:00:15]}  Rxe4 {[%clk 0:01:09]} 27. Rxd2 {[%clk 0:00:15]}  Bf6 {[%clk 0:01:05]} 28. Rd7 {[%clk 0:00:14]}  Re7 {[%clk 0:01:04]} 29. Rfd3 {[%clk 0:00:14]}  Kf8 {[%clk 0:01:03]} 30. Rd8+ {[%clk 0:00:12]}  Kg7 {[%clk 0:01:03]} 31. Ra8 {[%clk 0:00:11]}  Nf4 {[%clk 0:01:01]} 32. Rd2 {[%clk 0:00:08]}  b6 {[%clk 0:01:00]} 33. Kc2 {[%clk 0:00:08]}  g5 {[%clk 0:00:59]} 34. a4 {[%clk 0:00:08]}  h5 {[%clk 0:00:51]} 35. Kb3 {[%clk 0:00:05]}  h4 {[%clk 0:00:50]} 36. Rdd8 {[%clk 0:00:05]}  Kg6 {[%clk 0:00:48]} 37. Rg8+ {[%clk 0:00:05]}  Kf5 {[%clk 0:00:48]} 38. Rge8 {[%clk 0:00:05]}  Rd7 {[%clk 0:00:46]} 39. Rec8 {[%clk 0:00:03]}  h3 {[%clk 0:00:45]} 40. Rc4 {[%clk 0:00:02]}  Be5 {[%clk 0:00:45]} 41. a5 {[%clk 0:00:03]}  bxa5 {[%clk 0:00:44]} 42. Ka4 {[%clk 0:00:03]}  Ne6 {[%clk 0:00:39]} 43. Kxa5 {[%clk 0:00:03]}  Bxh2 {[%clk 0:00:39]} 44. Rh8 {[%clk 0:00:03]}  g4 {[%clk 0:00:38]} 45. Rh5+ {[%clk 0:00:03]}  Kg6 {[%clk 0:00:35]} 46. Rb5 {[%clk 0:00:03]}  f5 {[%clk 0:00:35]} 47. Rc6 {[%clk 0:00:03]}  Kf6 {[%clk 0:00:34]} 48. Rd5 {[%clk 0:00:02]}  Rxd5+ {[%clk 0:00:33]} 49. Ka6 {[%clk 0:00:02]}  Rd6 {[%clk 0:00:32]} 50. Rxd6 {[%clk 0:00:02]}  Bxd6 {[%clk 0:00:33]} 51. Kxa7 {[%clk 0:00:03]}  h2 {[%clk 0:00:33]} 52. b4 {[%clk 0:00:04]}  h1=Q {[%clk 0:00:34]} 53. b5 {[%clk 0:00:05]}  Qd5 {[%clk 0:00:34]} 54. b6 {[%clk 0:00:06]}  Qc6 {[%clk 0:00:34]} 55. b7 {[%clk 0:00:03]}  Bc5+ {[%clk 0:00:34]} 56. Ka8 {[%clk 0:00:03]}  Nd8 {[%clk 0:00:30]} 57. f4 {[%clk 0:00:02]}  Qxb7# {[%clk 0:00:31]} 0-1


[Site "https://www.chess.com"]